Cogmind - Beta 15 @@@ ROGUE MODE // 2025.10.05 @ 06:37:11 Player: rapskalian Result: Destroyed by VC-8B3(R) with Subdweller Machine Gun Performance ------------- Evolutions (0) 0 Regions Visited (2) 400 Robots Destroyed (9) 45 Value Destroyed (83) 83 Prototype IDs (0) 0 Alien Tech Used (0) 0 Bonus (-9) -9 TOTAL SCORE: 519 Bonus ------- Friendly Fire -9 Cogmind --------- Core Integrity 0/250 Matter 275/300 Energy 70/100 System Corruption 0% Temperature Cool (0) Movement Rolling (100) Location -10/Subcaves Parts ------- > --- POWER (1) -------- (None) > --- PROPULSION (2) --- Compact Wheel > --- UTILITY (2) ------ Small Storage Unit Visual Processing Unit > --- WEAPON (2) ------- Hammer > --- INVENTORY (8) ---- Light Treads Aluminum Leg Small Laser Mining Laser Peak State ------------ > --- POWER ------------ Ion Engine > --- PROPULSION ------- Aluminum Leg Aluminum Leg > --- UTILITY ---------- Small Storage Unit Visual Processing Unit > --- WEAPON ----------- Assault Rifle Light Assault Rifle > --- INVENTORY -------- Ion Engine Light Treads Light Treads Compact Wheel Compact Wheel Small Laser Mining Laser Hammer [Rating: 8] Favorites ----------- Power Ion Engine Engine Ion Engine Propulsion Aluminum Leg Leg Aluminum Leg Wheel Compact Wheel Utility Small Storage Unit Device Tractor Beam Storage Small Storage Unit Processor Visual Processing Unit Weapon Light Assault Rifle Ballistic Gun Light Assault Rifle Impact Weapon Hammer Build | -11 -10 -10 ------- Run | Yrd Mat Sub Slots Evolved . | . . . Power . | . . . Propulsion . | . . . Utility . | . . . Weapon . | . . . Parts Attached 15 | 7 1 7 Power 2 | 1 . 1 Engine 2 | 1 . 1 Core . | . . . Reactor . | . . . Propulsion 6 | 2 . 4 Treads . | . . . Leg 4 | 2 . 2 Wheel 2 | . . 2 Hover . | . . . Flight . | . . . Utility 3 | 2 1 . Device 1 | 1 . . Storage 1 | 1 . . Processor 1 | . 1 . Hackware . | . . . Protection . | . . . Artifact . | . . . Weapon 4 | 2 . 2 Energy Gun . | . . . Energy Cannon . | . . . Ballistic Gun 3 | 2 . 1 Ballistic Cannon . | . . . Launcher . | . . . Special Weapon . | . . . Impact Weapon 1 | . . 1 Slashing Weapon . | . . . Piercing Weapon . | . . . Special Melee Weapon . | . . . Unidentified Prototypes . | . . . Parts Lost 9 | . . 9 Power 2 | . . 2 Propulsion 4 | . . 4 Utility . | . . . Weapon 3 | . . 3 Highest Loss Streak 6 | . . 6 To Critical Strikes . | . . . Average Backups 6 | 4 7 7 Power . | . 1 . Propulsion 3 | 2 4 3 Utility . | . . . Weapon 2 | 1 2 2 Tool/Special . | . . . Unused Backups 4 | . . 4 Power . | . . . Propulsion 2 | . . 2 Utility . | . . . Weapon 2 | . . 2 Tool/Special . | . . . Average Slot Usage (%) 94 | . 99 92 Engine 10 | . 14 8 Leg 26 | . 28 26 Device 1 | . 5 . Storage 14 | . 14 14 Processor 11 | . 7 14 Ballistic Gun 26 | . 28 26 Peak Build Rating 8 | 7 8 8 Average Rating 7 | 5 7 7 On Entrance 5 | . 7 8 Naked Turns . | . . . Heaviest Build 14 | 14 14 13 Greatest Support 20 | 20 20 20 Greatest Overweight (x) . | . . . Average Overweight (x) . | . . . Largest Inventory Capacity 8 | 8 8 8 Average Capacity 7 | 7 8 8 Most Carried 8 | 7 8 8 Average Carried 6 | 4 7 7 Final Capacity 8 | 8 8 8 Final Carried 8 | 7 8 4 Class Distribution -------------------- 100% | Mutant Dominant Class ---------------- Mutant | -10/Materials Mutant | -10/Subcaves Resources | -11 -10 -10 ----------- Run | Yrd Mat Sub Matter Collected 478 | 326 14 138 Remotely 198 | 198 . . Salvage Created 246 | 202 . 44 Parts 25 | 20 . 5 Haulers Intercepted . | . . . Recyclers Shooed . | . . . Parts Field Recycled . | . . . Retrieved Matter . | . . . Parts Self-Destructed 7 | . . 7 Prevented . | . . . Kills | -11 -10 -10 ------- Run | Yrd Mat Sub Combat Hostiles Destroyed 1 | . . 1 Guns 1 | . . 1 Classes Destroyed 4 | 3 . 1 Worker 2 | 2 . . Tunneler 5 | 5 . . Recycler 1 | 1 . . Subdweller 1 | . . 1 Best Kill Streak 8 | 8 . 1 Combat Bots Only 1 | . . 1 Max Kills in Single Turn 1 | 1 . 1 Gunslinging . | . . . Exploded . | . . . Melee . | . . . Uniques/NPCs Destroyed . | . . . Combat | -11 -10 -10 -------- Run | Yrd Mat Sub Hostile Shots Fired 75 | . . 75 Missed 18 | . . 18 Hits 57 | . . 57 Projectile 57 | . . 57 Damage Taken 1195 | . . 1195 Core 253 | . . 253 Absorbed by Shields . | . . . Core Remaining (%) 100 | 100 . . Volleys Fired 50 | 14 1 35 Largest 2 | 2 2 2 Hottest 50 | 40 40 50 Shots Fired 98 | 28 2 68 Gun 98 | 28 2 68 Cannon . | . . . Launcher . | . . . Special . | . . . Kinetic 98 | 28 2 68 Thermal . | . . . Explosive . | . . . Electromagnetic . | . . . Robot Hit Streak 19 | 6 7 19 Robot Miss Streak 4 | 2 1 4 Penetration Max . | . . . Secondary Targets . | . . . Shots Hit Robots 70 | 15 1 54 Core Hits 14 | 9 1 4 Critical Kills . | . . . Critical Parts Destroyed . | . . . Critical Strikes . | . . . Melee Attacks 2 | . . 2 Impact 2 | . . 2 Slashing . | . . . Piercing . | . . . Sneak Attacks . | . . . Combat Hostiles . | . . . Follow-up Attacks . | . . . Damage Inflicted 426 | 181 21 224 Guns 409 | 181 21 207 Cannons . | . . . Explosions . | . . . Melee 17 | . . 17 Ramming . | . . . Kinetic 409 | 181 21 207 Thermal . | . . . Explosive . | . . . Electromagnetic . | . . . Impact 17 | . . 17 Slashing . | . . . Piercing . | . . . Highest Corruption . | . . . Average Corruption . | . . . Corruption Purged . | . . . Corruption Blocked . | . . . Overload Shots . | . . . Overflow Damage . | . . . Projectiles . | . . . Explosions . | . . . Melee . | . . . Knockbacks . | . . . Impact . | . . . Kinetic . | . . . Secondary . | . . . Self-Inflicted Damage . | . . . Shots . | . . . Rammed . | . . . Targets Rammed . | . . . Kicked . | . . . Crushed . | . . . Highest Temperature . | . . . Average Temperature . | . . . Received Heat Transfer 48 | . . 48 Siege Activations . | . . . Martial Activations . | . . . Shielding Activations . | . . . Robots Disrupted . | . . . Combat Hostiles . | . . . Robots Corrupted . | . . . Combat Hostiles . | . . . Parts Fried . | . . . Impact Corruptions . | . . . Robots Melted . | . . . Combat Hostiles . | . . . Parts Melted . | . . . Heat Transferred . | . . . Parts Sabotaged . | . . . Parts Stolen . | . . . Parts Stripped . | . . . Power Chain Reactions . | . . . Alert | -11 -10 -10 ------- Run | Yrd Mat Sub Maximum Alert Level . | . . . Low Security (%) 100 | 100 100 . Level 1 . | . . . Level 2 . | . . . Level 3 . | . . . Level 4 . | . . . Level 5 . | . . . High Security . | . . . Max Security . | . . . Peak Influence 15 | 15 6 . Initial 6 | . 6 . Average 2 | 4 . . Influence Increases 70 | 40 . 30 Destroy 0b10 Robot/NC 40 | 40 . . Lose Combat Pursuer 30 | . . 30 Influence Decreases 70 | 30 10 30 Entered New Map 4 | . 4 . Time Decay 66 | 30 6 30 Squads Dispatched 1 | . 1 . Investigation . | . . . Extermination . | . . . Reinforcement 1 | . 1 . Assault . | . . . Garrison . | . . . Intercept . | . . . Searches Triggered . | . . . Construction Impeded . | . . . Haulers Reinforced . | . . . Active Scanning Responses . | . . . Cargo Convoy Interrupts . | . . . Stealth | -11 -10 -10 --------- Run | Yrd Mat Sub Distress Signals 1 | . 1 . Communications Jammed . | . . . Distress Signals . | . . . Times Spotted 11 | . 3 8 Peak Tracking Total 4 | . 4 3 Tactical Retreats 1 | . . 1 Traps | -11 -10 -10 ------- Run | Yrd Mat Sub Traps Triggered . | . . . Indirectly . | . . . Trap Hack Attempts . | . . . Triggered . | . . . Disarmed . | . . . Reprogrammed . | . . . Reused . | . . . Traps Extracted . | . . . Installed . | . . . Triggered . | . . . Machines | -11 -10 -10 ---------- Run | Yrd Mat Sub Machines Disabled . | . . . Max in Single Turn . | . . . Machines Repaired . | . . . Machines Dismantled . | . . . Machines Sabotaged . | . . . Overloaded Fab Kills . | . . . Hacking | -11 -10 -10 --------- Run | Yrd Mat Sub Machines Accessed 2 | . 2 . Terminals 1 | . 1 . Fabricators . | . . . Repair Stations . | . . . Recycling Units 1 | . 1 . Scanalyzers . | . . . Garrison Access . | . . . Total Hacks 4 | . 4 . Successful 3 | . 3 . Failed 1 | . 1 . Catastrophic . | . . . Database Lockouts . | . . . Manual . | . . . Terminals 1 | . 1 . Fabricators . | . . . Repair Stations . | . . . Recycling Units 3 | . 3 . Scanalyzers . | . . . Garrison Access . | . . . Terminal Hacks 1 | . 1 . Locate Traps 1 | . 1 . Fabricator Hacks . | . . . Repair Station Hacks . | . . . Recycling Unit Hacks 2 | . 2 . Report Inventory 1 | . 1 . Retrieve Components 1 | . 1 . Scanalyzer . | . . . Garrison Access Hacks . | . . . Unauthorized Hacks . | . . . Terminals . | . . . Fabricators . | . . . Repair Stations . | . . . Recycling Units . | . . . Scanalyzers . | . . . Garrison Access . | . . . Data Cores Recovered . | . . . Used . | . . . Hacking Detections 1 | . 1 . Full Trace Events . | . . . Feedback Events . | . . . Feedback Blocked . | . . . Robot Schematics Acquired . | . . . Robots Built . | . . . Authchips . | . . . Time . | . . . Total Robot Build Rating . | . . . Part Schematics Acquired . | . . . Parts Built . | . . . Authchips . | . . . Time . | . . . Total Part Build Rating . | . . . Parts Repaired . | . . . Time . | . . . Parts Recycled . | . . . Recycled Matter . | . . . Retrieved Matter . | . . . Retrieved Components 3 | . 3 . Parts Scanalyzed . | . . . Part Schematics Acquired . | . . . Parts Damaged . | . . . Bothacking | -11 -10 -10 ------------ Run | Yrd Mat Sub Used RIF Installer . | . . . Robots Hacked . | . . . Non-combat . | . . . Combat . | . . . Robot Hacks Applied . | . . . Relay Couplers Released . | . . . Fabnet Peak Effective % . | . . . Robots Rewired . | . . . Allies Hacked . | . . . Hacks Repelled . | . . . Allies | -11 -10 -10 -------- Run | Yrd Mat Sub Total Allies . | . . . Largest Group . | . . . Highest-Rated Group . | . . . Highest-Rated Ally . | . . . Total Orders . | . . . Ally Attacks . | . . . Total Damage . | . . . Kills . | . . . Allies Corrupted . | . . . Allies Melted . | . . . Intel | -11 -10 -10 ------- Run | Yrd Mat Sub Active Infowar (turns) 413 | . 85 328 Optics 413 | . 85 328 Robot Analysis Total . | . . . Derelict Logs Recovered 1 | . . 1 Drone Launches . | . . . Drone Recoveries . | . . . Exploration | -11 -10 -10 ------------- Run | Yrd Mat Sub Turns Passed 620 | 134 158 328 Spaces Moved 334 | 71 107 156 Core 11 | 11 . . Treads . | . . . Legs 323 | 60 107 156 Wheels . | . . . Hover . | . . . Flight . | . . . Fastest Speed 50 | 50 120 120 Average Speed 117 | 109 120 120 Slowest Speed 120 | 120 120 120 Overloaded Moves . | . . . Propulsion Burnouts . | . . . Robots Hopped . | . . . Potential Cave-ins . | . . . Cave-ins Triggered . | . . . Exploration Rate (%) 19 | 5 40 14 Regions Visited 2 Branch Regions 1 Pre-discovered Areas . | . . . Known Exits Taken . | . . . Unknown Exits Taken 2 | 1 1 . Scrap Searched 2 | . . 2 Spaces Dug . | . . . Terrain Destroyed . | . . . Melee . | . . . Projectile . | . . . AOE . | . . . Terrain Rammed . | . . . Walls Destroyed . | . . . Machines Disabled . | . . . Actions | -11 -10 -10 --------- Run | Yrd Mat Sub Total 465 | 98 135 232 Wait 55 | . 25 30 Move 332 | 70 106 156 Hop . | . . . Pick Up 9 | 7 1 1 Fast Attach 9 | 7 1 1 Attach 5 | . . 5 Detach . | . . . Swap 1 | . . 1 Drop 2 | . 1 1 Fire 50 | 14 1 35 Melee 2 | . . 2 Ram . | . . . Kick . | . . . Crush . | . . . Escape Stasis . | . . . Rewire . | . . . Trap . | . . . Miscellaneous . | . . . Route ------- -11/Scrapyard -10/Materials (discovered 2 exits: [*Min] / [*Sub]) -10/Subcaves (discovered 1 exit: [*Rec]) History --------- Turn | Location | Event 2 | -11/Scrapyard | Met Revision 17 4 | -11/Scrapyard | Discovered new exit (range 16) 135 | -11/Scrapyard | Entered Materials 136 | -10/Materials | Met a group of wandering Federalists 202 | -10/Materials | Discovered new exit (range 11) 287 | -10/Materials | Discovered new exit (range 6) 293 | -10/Materials | Entered Subcaves 294 | -10/Subcaves | Continued accompanying wandering Federalists (5) 305 | -10/Subcaves | Build established: Mutant 325 | -10/Subcaves | Discovered new exit (range 18) 352 | -10/Subcaves | Learned location of 1 exit from Materials 395 | -10/Subcaves | Ambushed by Subdwellers from Twisted Machinery 445 | -10/Subcaves | Lost 3 allies 589 | -10/Subcaves | Disturbed a concealed Subdweller 598 | -10/Subcaves | Core integrity fell below 50% 618 | -10/Subcaves | Core integrity fell below 20% 621 | -10/Subcaves | Destroyed by VC-8B3(R) with Subdweller Machine Gun Last Messages --------------- 00537_ Subatomizers dissect the Sub. Optics. 00589_ VC-8B3(R) angrily emerges from the Twisted Machinery. 00590_ Searching scrap... 00590_ Found Piercing Trap. 00590_ Found Battle Cannon. 00590_ Found 57 Matter. 00590_ Aluminum Leg destroyed. 00591_ Acquired 7 matter. 00592_ Acquired 4 matter. 00596_ VC-8B3(R) affixes Scrap Shield Fragment to Scrap Shield. 00597_ Acquired 4 matter. 00599_ Assault Rifle destroyed. 00603_ Searching scrap... 00603_ Found Sub. Machine Gun. 00603_ Found 46 Matter. 00605_ Acquired Sub. Machine Gun. 00608_ Sub. Machine Gun destroyed. 00610_ Aluminum Leg destroyed. 00612_ Lgt. Assault Rifle destroyed. 00620_ Com. Wheel destroyed. Map ----- +----------------------------------------------------+ | ??????????????????????????????????????????# ??## | | ???????????????????????????????????????????# ### | | ????????????????????????????????????????????# | | ????????????????????????????????????????????## | | ?????????????????????????????????????????????# | | ?????????????????????????????????????????????# | | ?????????????????????????????????????????????# | | ?????????????????????????????????????????????#### | | ??????????????????????????????????????????#####?## | | ??????????????????????########???????????## #### | | ??????????????????????# ##???###???## | | ??????????????????????# ##?## ###?# | | ??????????????????????# ### ### # | | ??????????????????????#### # ## | | ?????????????????????????## #? | | ??????????????#???????????# ### ##? | | ????????????# ###### #### ## #########?? | | ?????????????# #?##### ##???????? | | ?????????????# ##????? #???????? | | ?????????????# ## ##?? #???????? | | ?????????????## ########### ## #???????? | | ??????????????# ?????######## ##???????? | | ?????????????# ???????# $## ## ??? | | ???????????????????????#$RR##" ?? | | ???????????????????????## R]& #?? | | ???????????????????????# @#%#" #?? | | ???????????????????????# %### ??? | | ???????????????????????####?### ??? | | ??????????????????????????????## ### ??? | | ????????????????????????????????##??##### ##???? | | ??????????????????????????????????????????###????? | | ?????????????????????????????????????????????????? | | ?????????????????????????????????????????????????? | | ?????????????????????????????????????????????????? | | ?????????????????????????????????????????????????? | | ?????????????????????????????????????????????????? | | ?????????????????????????????????????????????????? | | ?????????????????????????????????????????????????? | | ?????????????????????????????????????????????????? | | ?????????????????????????????????????????????????? | | ?????????????????????????????????????????????????? | | ?????????????????????????????????????????????????? | | ?????????????????????????????????????????????????? | | ?????????????????????????????????????????????????? | | ?????????????????????????????????????????????????? | | ?????????????????????????????????????????????????? | | ?????????????????????????????????????????????????? | | ?????????????????????????????????????????????????? | | ?????????????????????????????????????????????????? | | ?????????????????????????????????????????????????? | +----------------------------------------------------+ Best States ------------- Heat Dissipation 25 Energy Generation 10 Energy Capacity 250 Matter Stores 300 Matter Capacity 300 Sight Range 18 Terrain Scan Density 10 Evasion (%) 55 Item Schematics ----------------- None Robot Schematics ------------------ None Fabricated ------------ Nothing Repaired ---------- Nothing Alien Tech Used ----------------- None Achievements -------------- None Challenges ------------ None Game ------ Seed HoverCryofiberBooster Manual? 0 Play Time 00:13:31 Cumulative 14.7 hours Start 2025.10.05 @ 06:24:02 End 2025.10.05 @ 06:37:11 Sessions 1 Manual Loads 0 Difficulty Rogue Special Mode None Game No. 15 Rogue 15 Adventurer 0 Explorer 0 Win Type - Total 0 Types 0/0/0/0/0/0/0/0/0/0 Lore% 2 Gallery% 17 Achievement% 12 Wizard Run 0 Options --------- Layout 0 ASCII 0 Keyboard 1 Movement Numpad Keybinds 0 Fullscreen 1 Font 24/Smallcaps Map View 76x50 Zoom Use 0% Tactical HUD 1 Map Filters NONE Filters NONE Steam 1 RUN: 70c0d46d-c6b8-4ce4-b9b5-b15e789d1d52